fUSD/lending_fUSD_20250227
["ID","MTS","AMOUNT","RATE_DAILY","PERIOD"]
[354751720,1740665365180,-500.0,0.00054794,120]
[354751721,1740665365226,-500.0,0.00054794,120]
[354751722,1740665365270,-1754.33,0.00054794,120]
[354751723,1740665365313,-500.0,0.00054794,120]
[354751724,1740665365353,-500.0,0.00054794,120]
[354751725,1740665365391,-537.93,0.00054794,120]
[354751726,1740665365427,-420.26,0.00054794,120]
[354751727,1740665365464,-583.13,0.00054794,120]
[354751728,1740665365499,-368.85,0.00054794,120]
[354751729,1740665365537,-382.0,0.00054794,120]
[354751730,1740665365577,-500.0,0.00054794,120]
[354751731,1740665365617,-500.0,0.00054794,120]
[354751732,1740665365655,-283.94,0.00054794,120]
[354751733,1740665365692,-500.0,0.00054794,120]
[354751734,1740665365728,-500.0,0.00054794,120]
[354751735,1740665365764,-500.0,0.00054794,120]
[354751736,1740665365800,-500.0,0.00054794,120]
[354751737,1740665365837,-500.0,0.00054794,120]
[354751738,1740665365874,-500.0,0.00054794,120]
[354751739,1740665365911,-500.0,0.00054794,120]
[354751740,1740665365952,-1759.5,0.00054794,120]
[354751741,1740665365990,-551.19,0.00054794,120]
[354751742,1740665366027,-500.0,0.00054794,120]
[354751743,1740665366065,-3590.26,0.00054794,120]
[354751744,1740665366101,-500.0,0.00054794,120]
[354751745,1740665366139,-500.0,0.00054794,120]
[354751746,1740665366177,-500.0,0.00054794,120]
[354751747,1740665366223,-639.65,0.00054794,120]
[354751748,1740665366267,-564.07,0.00054794,120]
[354751749,1740665366308,-500.0,0.00054794,120]
[354751750,1740665366347,-500.0,0.00054794,120]
[354751751,1740665366386,-500.0,0.00054794,120]
[354751752,1740665366423,-500.0,0.00054794,120]
[354751753,1740665366460,-723.05,0.00054794,120]
[354751754,1740665366495,-660.45,0.00054794,120]
[354751755,1740665366529,-500.0,0.00054794,120]
[354751756,1740665366564,-310.38447035,0.00054794,120]
[354751757,1740665366599,-500.0,0.00054794,120]
[354751758,1740665366636,-572.83,0.00055068,120]
[354751759,1740665366671,-500.0,0.00055068,120]
[354751760,1740665366705,-500.0,0.00055068,120]
[354751761,1740665366740,-1276.66,0.00055068,120]
[354751762,1740665366774,-500.0,0.00055068,120]
[354751763,1740665366808,-500.0,0.00055068,120]
[354751764,1740665366842,-500.0,0.00055068,120]
[354751765,1740665366878,-500.0,0.00055068,120]
[354751766,1740665366912,-589.46,0.00055068,120]
[354751767,1740665366948,-1675.76,0.00055068,120]
[354751768,1740665366981,-500.0,0.00055068,120]
[354751769,1740665367016,-500.0,0.00055068,120]
[354751770,1740665367056,-500.0,0.00055068,120]
[354751771,1740665367094,-500.0,0.00055068,120]
[354751772,1740665367131,-500.0,0.00055068,120]
[354751773,1740665367172,-500.0,0.00055068,120]
[354751774,1740665367214,-1754.33,0.00055068,120]
[354751775,1740665367255,-500.0,0.00055068,120]
[354751776,1740665367296,-500.0,0.00055068,120]
[354751777,1740665367337,-487.04235663,0.00055068,120]
[354751778,1740665367376,-500.0,0.00055068,120]
[354751779,1740665367416,-510.03274499,0.00055068,120]
[354751780,1740665367454,-500.0,0.00055068,120]
[354751781,1740665367492,-500.0,0.00055068,120]
[354751782,1740665367529,-195.18,0.00055068,120]
[354751783,1740665367564,-1759.5,0.00055068,120]
[354751784,1740665367602,-3590.26,0.00055068,120]
[354751785,1740665367638,-546.94,0.00055068,120]
[354751786,1740665367674,-188.95,0.00055068,120]
[354751787,1740665367711,-500.0,0.00055068,120]
[354751788,1740665367868,-500.0,0.00055068,120]
[354751789,1740665367907,-723.05,0.00055068,120]
[354751790,1740665367943,-660.45,0.00055068,120]
[354751791,1740665367980,-500.0,0.00055068,120]
[354751792,1740665368015,-207.12817815,0.00055068,120]
[354751793,1740665368052,-572.83,0.00055342,120]
[354751794,1740665368087,-500.0,0.00055342,120]
[354751795,1740665368121,-1276.66,0.00055342,120]
[354751796,1740665368156,-500.0,0.00055342,120]
[354751797,1740665368196,-500.0,0.00055342,120]
[354751798,1740665368233,-500.0,0.00055342,120]
[354751799,1740665368270,-500.0,0.00055342,120]
[354751800,1740665368308,-589.46,0.00055342,120]
[354751801,1740665368344,-1675.76,0.00055342,120]
[354751802,1740665368380,-256.53,0.00055342,120]
[354751803,1740665368416,-329.82,0.00055342,120]
[354751804,1740665368452,-500.0,0.00055342,120]
[354751805,1740665368487,-500.0,0.00055342,120]
[354751806,1740665368522,-316.20505678,0.00055342,120]
[354751807,1740665368559,-500.0,0.00055342,120]
[354751808,1740665368597,-1754.33,0.00055342,120]
[354751809,1740665368634,-500.0,0.00055342,120]
[354751810,1740665368673,-500.0,0.00055342,120]
[354751811,1740665368709,-288.37992169,0.00055342,120]
[354751812,1740665368744,-500.0,0.00055342,120]
[354751813,1740665368778,-500.0,0.00055342,120]
[354751814,1740665368812,-1759.5,0.00055342,120]
[354751815,1740665368846,-3590.26,0.00055342,120]
[354751816,1740665368880,-302.05,0.00055342,120]
[354751817,1740665368915,-500.0,0.00055342,120]
[354751818,1740665368950,-723.05,0.00055342,120]
[354751819,1740665368983,-660.45,0.00055342,120]
[354751820,1740665369019,-500.0,0.00055342,120]
[354751821,1740665369056,-207.12817815,0.00055342,120]
[354751822,1740665369095,-151.0,0.0005537,120]
[354751823,1740665369133,-207.12817815,0.00055589,120]
[354751824,1740665369172,-572.83,0.00055616,120]
[354751825,1740665369210,-500.0,0.00055616,120]
[354751826,1740665369248,-1276.66,0.00055616,120]
[354751827,1740665369283,-167.26009022,0.00055616,120]
[354751828,1740665369320,-500.0,0.00055616,120]
[354751829,1740665369356,-500.0,0.00055616,120]
[354751830,1740665369392,-456.71,0.00055616,120]
[354751831,1740665369428,-589.46,0.00055616,120]
[354751832,1740665369464,-1675.76,0.00055616,120]
[354751833,1740665369501,-500.0,0.00055616,120]
[354751834,1740665369547,-500.0,0.00055616,120]
[354751835,1740665369589,-500.0,0.00055616,120]
[354751836,1740665369632,-1754.33,0.00055616,120]
[354751837,1740665369673,-500.0,0.00055616,120]
[354751838,1740665369717,-500.0,0.00055616,120]
[354751839,1740665369760,-500.0,0.00055616,120]
[354751840,1740665369798,-500.0,0.00055616,120]
[354751841,1740665369842,-1759.5,0.00055616,120]
[354751842,1740665369884,-3590.26,0.00055616,120]
[354751843,1740665369928,-500.0,0.00055616,120]
[354751844,1740665369971,-723.05,0.00055616,120]
[354751845,1740665370010,-660.45,0.00055616,120]
[354751846,1740665370057,-500.0,0.00055616,120]
[354751847,1740665370099,-207.12817815,0.00055863,120]
[354751848,1740665370141,-572.83,0.0005589,120]
[354751849,1740665370191,-500.0,0.0005589,120]
[354751850,1740665370239,-1276.66,0.0005589,120]
[354751851,1740665370282,-500.0,0.0005589,120]
[354751852,1740665370325,-500.0,0.0005589,120]
[354751853,1740665370372,-589.46,0.0005589,120]
[354751854,1740665370413,-1675.76,0.0005589,120]
[354751855,1740665370455,-500.0,0.0005589,120]
[354751856,1740665370499,-500.0,0.0005589,120]
[354751857,1740665370540,-500.0,0.0005589,120]
[354751858,1740665370580,-1754.33,0.0005589,120]
[354751859,1740665370619,-500.0,0.0005589,120]
[354751860,1740665370658,-500.0,0.0005589,120]
[354751861,1740665370697,-500.0,0.0005589,120]
[354751862,1740665370739,-500.0,0.0005589,120]
[354751863,1740665370783,-1759.5,0.0005589,120]
[354751864,1740665370827,-3590.26,0.0005589,120]
[354751865,1740665370877,-500.0,0.0005589,120]
[354751866,1740665370920,-723.05,0.0005589,120]
[354751867,1740665370964,-660.45,0.0005589,120]
[354751868,1740665371004,-500.0,0.0005589,120]
[354751869,1740665371046,-207.12817815,0.00056137,120]
[354751870,1740665371089,-572.83,0.00056164,120]
[354751871,1740665371129,-500.0,0.00056164,120]
[354751872,1740665371165,-1276.66,0.00056164,120]
[354751873,1740665371201,-500.0,0.00056164,120]
[354751874,1740665371237,-500.0,0.00056164,120]
[354751875,1740665371272,-589.46,0.00056164,120]
[354751876,1740665371309,-1675.76,0.00056164,120]
[354751877,1740665371344,-357.98874572,0.00056164,120]
[354751878,1740665371383,-500.0,0.00056164,120]
[354751879,1740665371425,-500.0,0.00056164,120]
[354751880,1740665371635,-1754.33,0.00056164,120]
[354751881,1740665371685,-500.0,0.00056164,120]
[354751882,1740665371727,-500.0,0.00056164,120]
[354751883,1740665371766,-500.0,0.00056164,120]
[354751884,1740665371804,-500.0,0.00056164,120]
[354751885,1740665371842,-1759.5,0.00056164,120]
[354751886,1740665371880,-3590.26,0.00056164,120]
[354751887,1740665371919,-500.0,0.00056164,120]
[354751888,1740665371957,-723.05,0.00056164,120]
[354751889,1740665371996,-660.45,0.00056164,120]
[354751890,1740665372033,-500.0,0.00056164,120]
[354751891,1740665372069,-970.17968348,0.0005636,120]
[354751892,1740665372106,-970.17968348,0.0005636,120]
[354751893,1740665372143,-970.17968348,0.0005636,120]
[354751894,1740665372181,-970.17968348,0.0005636,120]
[354751895,1740665372227,-970.17968348,0.0005636,120]
[354751896,1740665372268,-970.17968348,0.0005636,120]
[354751897,1740665372304,-970.17968348,0.0005636,120]
[354751898,1740665372340,-970.17968348,0.0005636,120]
[354751899,1740665372377,-207.12817815,0.00056411,120]
[354751900,1740665372414,-572.83,0.00056438,120]
[354751901,1740665372449,-500.0,0.00056438,120]
[354751902,1740665372483,-1276.66,0.00056438,120]
[354751903,1740665372518,-500.0,0.00056438,120]
[354751904,1740665372552,-500.0,0.00056438,120]
[354751905,1740665372588,-589.46,0.00056438,120]
[354751906,1740665372623,-1675.76,0.00056438,120]
[354751907,1740665372658,-500.0,0.00056438,120]
[354751908,1740665372692,-500.0,0.00056438,120]
[354751909,1740665372728,-1754.33,0.00056438,120]
[354751910,1740665372763,-500.0,0.00056438,120]
[354751911,1740665372799,-500.0,0.00056438,120]
[354751912,1740665372832,-241.39,0.00056438,120]
[354751913,1740665372867,-500.0,0.00056438,120]
[354751914,1740665372899,-1759.5,0.00056438,120]
[354751915,1740665372935,-3590.26,0.00056438,120]
[354751916,1740665372970,-500.0,0.00056438,120]
[354751917,1740665373005,-723.05,0.00056438,120]
[354751918,1740665373042,-660.45,0.00056438,120]
[354751919,1740665373081,-500.0,0.00056438,120]
[354751920,1740665373123,-207.12817815,0.00056658,120]
[354751921,1740665373165,-572.83,0.00056712,120]
[354751922,1740665373206,-500.0,0.00056712,120]
[354751923,1740665373244,-1276.66,0.00056712,120]
[354751924,1740665373288,-500.0,0.00056712,120]
[354751925,1740665373332,-500.0,0.00056712,120]
[354751926,1740665373375,-589.46,0.00056712,120]
[354751927,1740665373421,-1675.76,0.00056712,120]
[354751928,1740665373465,-500.0,0.00056712,120]
[354751929,1740665373509,-500.0,0.00056712,120]
[354751930,1740665373553,-1754.33,0.00056712,120]
[354751931,1740665373597,-500.0,0.00056712,120]
[354751932,1740665373641,-500.0,0.00056712,120]
[354751933,1740665373685,-500.0,0.00056712,120]
[354751934,1740665373729,-1759.5,0.00056712,120]
[354751935,1740665373773,-3590.26,0.00056712,120]
[354751936,1740665373815,-500.0,0.00056712,120]
[354751937,1740665373859,-723.05,0.00056712,120]
[354751938,1740665373900,-660.45,0.00056712,120]
[354751939,1740665373942,-500.0,0.00056712,120]
[354751940,1740665373984,-151.0,0.00056795,120]
[354751941,1740665374027,-206.0,0.0005691,30]
[354751942,1740665374070,-207.12817815,0.00056932,120]
[354751943,1740665374112,-572.83,0.00056986,120]
[354751944,1740665374154,-500.0,0.00056986,120]
[354751945,1740665374199,-1276.66,0.00056986,120]
[354751946,1740665374243,-500.0,0.00056986,120]
[354751947,1740665374286,-500.0,0.00056986,120]
[354751948,1740665374330,-589.46,0.00056986,120]
[354751949,1740665374373,-1675.76,0.00056986,120]
[354751950,1740665374414,-500.0,0.00056986,120]
[354751951,1740665374455,-500.0,0.00056986,120]
[354751952,1740665374494,-1754.33,0.00056986,120]
[354751953,1740665374534,-500.0,0.00056986,120]
[354751954,1740665374574,-500.0,0.00056986,120]
[354751955,1740665374615,-500.0,0.00056986,120]
[354751956,1740665374653,-1759.5,0.00056986,120]
[354751957,1740665374694,-3590.26,0.00056986,120]
[354751958,1740665374733,-500.0,0.00056986,120]
[354751959,1740665374775,-723.05,0.00056986,120]
[354751960,1740665374815,-660.45,0.00056986,120]
[354751961,1740665374856,-500.0,0.00056986,120]
[354751962,1740665374897,-207.12817815,0.00057205,120]
[354751963,1740665374940,-151.0,0.0005725,120]
[354751964,1740665374980,-572.83,0.0005726,120]
[354751965,1740665375020,-500.0,0.0005726,120]
[354751966,1740665375062,-1276.66,0.0005726,120]
[354751967,1740665375102,-158.49,0.0005726,120]
[354751968,1740665375144,-500.0,0.0005726,120]
[354751969,1740665375189,-589.46,0.0005726,120]
[354751970,1740665375240,-1675.76,0.0005726,120]
[354751971,1740665375282,-500.0,0.0005726,120]
[354751972,1740665375458,-500.0,0.0005726,120]
[354751973,1740665375502,-1754.33,0.0005726,120]
[354751974,1740665375546,-500.0,0.0005726,120]
[354751975,1740665375590,-500.0,0.0005726,120]
[354751976,1740665375631,-500.0,0.0005726,120]
[354751977,1740665375669,-1759.5,0.0005726,120]
[354751978,1740665375709,-3590.26,0.0005726,120]
[354751979,1740665375748,-500.0,0.0005726,120]
[354751980,1740665375786,-723.05,0.0005726,120]
[354751981,1740665375823,-660.45,0.0005726,120]
[354751982,1740665375860,-500.0,0.0005726,120]
[354751983,1740665375895,-207.12817815,0.00057452,120]
[354751984,1740665375930,-151.0,0.000575,120]
[354751985,1740665375967,-572.83,0.00057534,120]
[354751986,1740665376004,-500.0,0.00057534,120]
[354751987,1740665376042,-1276.66,0.00057534,120]
[354751988,1740665376080,-500.0,0.00057534,120]
[354751989,1740665376118,-589.46,0.00057534,120]
[354751990,1740665376156,-1675.76,0.00057534,120]
[354751991,1740665376197,-500.0,0.00057534,120]
[354751992,1740665376239,-500.0,0.00057534,120]
[354751993,1740665376282,-1754.33,0.00057534,120]
[354751994,1740665376323,-500.0,0.00057534,120]
[354751995,1740665376364,-275.39,0.00057534,120]
[354751996,1740665376405,-500.0,0.00057534,120]
[354751997,1740665376445,-1759.5,0.00057534,120]
[354751998,1740665376487,-3590.26,0.00057534,120]
[354751999,1740665376531,-500.0,0.00057534,120]
[354752000,1740665376572,-723.05,0.00057534,120]
[354752001,1740665376613,-660.45,0.00057534,120]
[354752002,1740665376652,-500.0,0.00057534,120]
[354752003,1740665376694,-207.12817815,0.00057726,120]
[354752004,1740665376735,-572.83,0.00057808,120]
[354752005,1740665376776,-500.0,0.00057808,120]
[354752006,1740665376816,-1276.66,0.00057808,120]
[354752007,1740665376856,-500.0,0.00057808,120]
[354752008,1740665376894,-589.46,0.00057808,120]
[354752009,1740665376932,-1675.76,0.00057808,120]
[354752010,1740665376970,-500.0,0.00057808,120]
[354752011,1740665377008,-500.0,0.00057808,120]
[354752012,1740665377048,-1754.33,0.00057808,120]
[354752013,1740665377087,-500.0,0.00057808,120]
[354752014,1740665377127,-500.0,0.00057808,120]
[354752015,1740665377169,-1759.5,0.00057808,120]
[354752016,1740665377213,-3590.26,0.00057808,120]
[354752017,1740665377258,-500.0,0.00057808,120]
[354752018,1740665377300,-723.05,0.00057808,120]
[354752019,1740665377344,-660.45,0.00057808,120]
[354752020,1740665377390,-500.0,0.00057808,120]
[354752021,1740665377435,-151.0,0.00058,120]
[354752022,1740665377490,-207.12817815,0.00058,120]
[354752023,1740665377539,-572.83,0.00058082,120]
[354752024,1740665377587,-500.0,0.00058082,120]
[354752025,1740665377634,-1276.66,0.00058082,120]
[354752026,1740665377678,-210.53,0.00058082,120]
[354752027,1740665377730,-589.46,0.00058082,120]
[354752028,1740665377775,-1675.76,0.00058082,120]
[354752029,1740665377818,-500.0,0.00058082,120]
[354752030,1740665377859,-500.0,0.00058082,120]
[354752031,1740665377902,-1754.33,0.00058082,120]
[354752032,1740665377947,-500.0,0.00058082,120]
[354752033,1740665377987,-500.0,0.00058082,120]
[354752034,1740665378028,-1759.5,0.00058082,120]
[354752035,1740665378071,-3590.26,0.00058082,120]
[354752036,1740665378115,-500.0,0.00058082,120]
[354752037,1740665378160,-723.05,0.00058082,120]
[354752038,1740665378207,-660.45,0.00058082,120]
[354752039,1740665378250,-500.0,0.00058082,120]
[354752040,1740665378296,-572.83,0.00058356,120]
[354752041,1740665378340,-500.0,0.00058356,120]
[354752042,1740665378383,-1276.66,0.00058356,120]
[354752043,1740665378424,-589.46,0.00058356,120]
[354752044,1740665378464,-1675.76,0.00058356,120]
[354752045,1740665378506,-500.0,0.00058356,120]
[354752046,1740665378545,-476.37,0.00058356,120]
[354752047,1740665378584,-1754.33,0.00058356,120]
[354752048,1740665378623,-596.82043401,0.00058356,120]
[354752049,1740665378660,-500.0,0.00058356,120]
[354752050,1740665378698,-1759.5,0.00058356,120]
[354752051,1740665378737,-3590.26,0.00058356,120]
[354752052,1740665378777,-500.0,0.00058356,120]
[354752053,1740665378816,-723.05,0.00058356,120]
[354752054,1740665378854,-660.45,0.00058356,120]
[354752055,1740665378893,-354.99,0.00058356,120]
[354752056,1740665378930,-206.0,0.0005853,30]
[354752057,1740665378972,-572.83,0.0005863,120]
[354752058,1740665379010,-504.87,0.0005863,120]
[354752059,1740665379049,-1276.66,0.0005863,120]
[354752060,1740665379088,-589.46,0.0005863,120]
[354752061,1740665379128,-1675.76,0.0005863,120]
[354752062,1740665379169,-500.0,0.0005863,120]
[354752063,1740665379213,-1754.33,0.0005863,120]
[354752064,1740665379257,-500.0,0.0005863,120]
[354752065,1740665379303,-1759.5,0.0005863,120]
[354752066,1740665379351,-3590.26,0.0005863,120]
[354752067,1740665379542,-500.0,0.0005863,120]
[354752068,1740665379590,-723.05,0.0005863,120]
[354752069,1740665379635,-660.45,0.0005863,120]
[354752070,1740665379679,-151.0,0.00058822,120]
[354752071,1740665379726,-572.83,0.00058904,120]
[354752072,1740665379771,-1276.66,0.00058904,120]
[354752073,1740665379813,-589.46,0.00058904,120]
[354752074,1740665379851,-1675.76,0.00058904,120]
[354752075,1740665379891,-500.0,0.00058904,120]
[354752076,1740665379931,-1754.33,0.00058904,120]
[354752077,1740665379971,-500.0,0.00058904,120]
[354752078,1740665380009,-1759.5,0.00058904,120]
[354752079,1740665380048,-3590.26,0.00058904,120]
[354752080,1740665380088,-500.0,0.00058904,120]
[354752081,1740665380129,-723.05,0.00058904,120]
[354752082,1740665380173,-660.45,0.00058904,120]
[354752083,1740665380219,-298.768751,0.00059,120]
[354752084,1740665380263,-1000000.0,0.00059,120]
[354752085,1740665380308,-151.0,0.00059151,120]
[354752086,1740665380349,-572.83,0.00059178,120]
[354752087,1740665380391,-1276.66,0.00059178,120]
[354752088,1740665380430,-589.46,0.00059178,120]
[354752089,1740665380472,-1675.76,0.00059178,120]
[354752090,1740665380510,-500.0,0.00059178,120]
[354752091,1740665380550,-1754.33,0.00059178,120]
[354752092,1740665380587,-500.0,0.00059178,120]
[354752093,1740665380624,-1759.5,0.00059178,120]
[354752094,1740665380660,-3590.26,0.00059178,120]
[354752095,1740665380702,-500.0,0.00059178,120]
[354752096,1740665380738,-723.05,0.00059178,120]
[354752097,1740665380773,-660.45,0.00059178,120]
[354752098,1740665380810,-572.83,0.00059452,120]
[354752099,1740665380844,-1276.66,0.00059452,120]
[354752100,1740665380879,-589.46,0.00059452,120]
[354752101,1740665380915,-1675.76,0.00059452,120]
[354752102,1740665380952,-500.0,0.00059452,120]
[354752103,1740665380987,-1754.33,0.00059452,120]
[354752104,1740665381023,-500.0,0.00059452,120]
[354752105,1740665381061,-1759.5,0.00059452,120]
[354752106,1740665381100,-3590.26,0.00059452,120]
[354752107,1740665381139,-500.0,0.00059452,120]
[354752108,1740665381180,-723.05,0.00059452,120]
[354752109,1740665381223,-660.45,0.00059452,120]
[354752110,1740665381262,-572.83,0.00059726,120]
[354752111,1740665381301,-1276.66,0.00059726,120]
[354752112,1740665381336,-589.46,0.00059726,120]
[354752113,1740665381372,-1675.76,0.00059726,120]
[354752114,1740665381406,-500.0,0.00059726,120]
[354752115,1740665381440,-1754.33,0.00059726,120]
[354752116,1740665381475,-500.0,0.00059726,120]
[354752117,1740665381508,-1759.5,0.00059726,120]
[354752118,1740665381543,-3590.26,0.00059726,120]
[354752119,1740665381581,-500.0,0.00059726,120]
[354752120,1740665381619,-723.05,0.00059726,120]
[354752121,1740665381654,-660.45,0.00059726,120]
[354752122,1740665381690,-1514.23566549,0.000599,120]
[354752123,1740665381725,-400.0,0.0005997,30]
[354752124,1740665381759,-400.0,0.0005997,30]
[354752125,1740665381792,-589.22823189,0.0005997,30]
[354752126,1740665381828,-572.83,0.00059999,120]
[354752127,1740665381865,-1276.66,0.00059999,120]
[354752128,1740665381901,-589.46,0.00059999,120]
[354752129,1740665381934,-1675.76,0.00059999,120]
[354752130,1740665381969,-500.0,0.00059999,120]
[354752131,1740665382003,-1754.33,0.00059999,120]
[354752132,1740665382038,-500.0,0.00059999,120]
[354752133,1740665382072,-1759.5,0.00059999,120]
[354752134,1740665382110,-3590.26,0.00059999,120]
[354752135,1740665382148,-500.0,0.00059999,120]
[354752136,1740665382188,-723.05,0.00059999,120]
[354752137,1740665382233,-660.45,0.00059999,120]
[354752138,1740665382271,-1000.0,0.0006,120]
[354752139,1740665382310,-1016.0,0.0006,120]
[354752140,1740665382346,-156.280184,0.0006,120]
[354752141,1740665382381,-156.28018,0.0006,120]
[354752142,1740665382415,-1666.0,0.0006,118]
[354752143,1740665382450,-151.0,0.0006,120]
[354752144,1740665382484,-151.0,0.0006,120]
[354752145,1740665382517,-206.410886,0.0006,120]
[354752146,1740665382554,-206.410886,0.0006,120]
[354752147,1740665382588,-206.410886,0.0006,120]
[354752148,1740665382623,-206.410888,0.0006,120]
[354752149,1740665382657,-362.905968,0.0006,120]
[354752150,1740665382690,-362.905968,0.0006,120]
[354752151,1740665382728,-362.905968,0.0006,120]
[354752152,1740665382763,-362.905968,0.0006,120]
[354752153,1740665382798,-151.0,0.0006,120]
[354752154,1740665382832,-193.362182,0.0006,30]
[354752155,1740665382865,-151.0,0.0006,120]
[354752156,1740665382898,-151.0,0.0006,120]
[354752157,1740665382931,-151.0,0.0006,120]
[354752158,1740665382964,-151.0,0.0006,120]
[354752159,1740665382996,-2244.04015,0.0006,103]
[354752160,1740665383032,-1000000.0,0.0006,120]
[354752161,1740665383067,-1000000.0,0.0006,120]
[354752162,1740665383210,-1000000.0,0.0006,120]
[354752163,1740665383248,-206.0,0.0006014,30]
[354752164,1740665383288,-549.79,0.00060273,120]
[354752165,1740665383330,-1469.13,0.00060273,120]
[354752166,1740665383374,-500.0,0.00060273,120]
[354752167,1740665383417,-2765.13,0.00060273,120]
[354752168,1740665383458,-766.1,0.00060273,120]
[354752169,1740665383499,-572.83,0.00060273,120]
[354752170,1740665383542,-1276.66,0.00060273,120]
[354752171,1740665383581,-589.46,0.00060273,120]
[354752172,1740665383618,-1675.76,0.00060273,120]
[354752173,1740665383656,-379.22,0.00060273,120]
[354752174,1740665383695,-1754.33,0.00060273,120]
[354752175,1740665383731,-500.0,0.00060273,120]
[354752176,1740665383766,-1759.5,0.00060273,120]
[354752177,1740665383802,-3590.26,0.00060273,120]
[354752178,1740665383838,-500.0,0.00060273,120]
[354752179,1740665383875,-723.05,0.00060273,120]
[354752180,1740665383910,-660.45,0.00060273,120]
[354752181,1740665383945,-335.0,0.00060466,30]
[354752182,1740665383980,-549.79,0.00060547,120]
[354752183,1740665384017,-1469.13,0.00060547,120]
[354752184,1740665384055,-449.50101411,0.00060547,120]
[354752185,1740665384095,-2765.13,0.00060547,120]
[354752186,1740665384133,-766.1,0.00060547,120]
[354752187,1740665384174,-572.83,0.00060547,120]
[354752188,1740665384215,-1276.66,0.00060547,120]
[354752189,1740665384257,-589.46,0.00060547,120]
[354752190,1740665384297,-1675.76,0.00060547,120]
[354752191,1740665384339,-1754.33,0.00060547,120]
[354752192,1740665384379,-500.0,0.00060547,120]
[354752193,1740665384418,-1759.5,0.00060547,120]
[354752194,1740665384457,-3590.26,0.00060547,120]
[354752195,1740665384496,-193.22387121,0.00060547,120]
[354752196,1740665384533,-723.05,0.00060547,120]
[354752197,1740665384572,-660.45,0.00060547,120]
[354752198,1740665384609,-549.79,0.00060821,120]
[354752199,1740665384647,-1469.13,0.00060821,120]
[354752200,1740665384682,-2765.13,0.00060821,120]
[354752201,1740665384720,-766.1,0.00060821,120]
[354752202,1740665384757,-572.83,0.00060821,120]
[354752203,1740665384794,-1276.66,0.00060821,120]
[354752204,1740665384831,-589.46,0.00060821,120]
[354752205,1740665384871,-1675.76,0.00060821,120]
[354752206,1740665384912,-1754.33,0.00060821,120]
[354752207,1740665384952,-500.0,0.00060821,120]
[354752208,1740665384990,-1759.5,0.00060821,120]
[354752209,1740665385032,-3590.26,0.00060821,120]
[354752210,1740665385073,-723.05,0.00060821,120]
[354752211,1740665385114,-660.45,0.00060821,120]
[354752212,1740665385160,-150.0,0.00060826,120]
[354752213,1740665385206,-1126.0,0.00060898,120]
[354752214,1740665385250,-1126.0,0.00060898,120]
[354752215,1740665385294,-545566.89292627,0.00061,120]
[354752216,1740665411674,-500.0,0.00054794,120]
[354752217,1740665411728,-500.0,0.00054794,120]
[354752218,1740665411783,-701.74,0.00054794,120]
[354752219,1740665411976,-500.0,0.00054794,120]